bitfinex/quotes_SOLUSD_20250417
["timestamp","ask_amount","ask_price","bid_price","bid_amount"]
[1744929737559,7.46101619,134.03,133.99,9.18221062]
[1744929737761,7.46101619,134.03,134.02,8.7557259]
[1744929737970,7.45990302,134.05,134.02,8.7557259]
[1744929738174,7.45990302,134.05,134.04,8.7557259]
[1744929740284,0.063,134.06,134.04,8.7557259]
[1744929742578,0.063,134.06,134.03,8.7557259]
[1744929742971,0.063,134.06,134.04,8.7557259]
[1744929746847,0.063,134.06,134.05,8.7557259]
[1744929750797,0.063,134.06,134.05,9.18221061]
[1744929753596,0.063,134.06,134.05,23.94221061]
[1744929755009,0.063,134.08,134.06,0.28432314]
[1744929755194,0.063,134.09,134.08,35.18221061]
[1744929767970,0.063,134.09,134.06,8.7557259]
[1744929768177,0.063,134.09,134.06,34.7557259]
[1744929768388,0.063,134.09,134.07,8.7557259]
[1744929768789,0.063,134.09,134.06,34.7557259]
[1744929769188,0.063,134.09,134.08,8.7557259]
[1744929771189,0.063,134.09,134.08,9.18221061]
[1744929771588,0.063,134.09,134.08,8.7557259]
[1744929773185,0.063,134.09,134.08,26.0]
[1744929773376,0.063,134.09,134.08,34.7557259]
[1744929774003,0.063,134.09,134.08,35.18221061]
[1744929777699,0.063,134.09,134.08,34.89788747]
[1744929778004,0.063,134.09,134.08,35.18221061]
[1744929780397,0.063,134.09,134.07,8.7557259]
[1744929780779,0.063,134.09,134.06,26.0]
[1744929780980,0.063,134.09,134.08,8.7557259]
[1744929781209,0.063,134.09,134.08,9.18221061]
[1744929781786,0.063,134.09,134.07,8.7557259]
[1744929783709,0.063,134.09,134.08,8.7557259]
[1744929783898,0.063,134.09,134.07,9.18221061]
[1744929784093,0.063,134.09,134.06,34.7557259]
[1744929784294,0.063,134.09,134.06,26.0]
[1744929785112,26.16487186,134.09,134.06,26.0]
[1744929787504,26.16487186,134.09,134.06,34.7557259]
[1744929790317,26.10576564,134.07,134.03,8.7557259]
[1744929795222,34.86149154,134.07,134.03,8.7557259]
[1744929797119,34.86149154,134.07,134.02,26.03]
[1744929797295,34.86149154,134.07,134.03,8.7557259]
[1744929798124,26.10576564,134.07,134.03,8.7557259]
[1744929800725,26.10576564,134.07,134.04,8.7557259]
[1744929802630,26.10576564,134.07,134.03,9.18221061]
[1744929803331,34.86149154,134.07,134.03,9.18221061]
[1744929804734,34.86149154,134.07,134.03,0.42648471]
[1744929804927,34.86149154,134.07,134.03,9.18221061]
[1744929806134,34.86149154,134.07,134.03,8.89788747]
[1744929806832,34.86149154,134.07,134.03,8.7557259]
[1744929810334,34.86149154,134.07,134.02,34.7857259]
[1744929810513,34.86149154,134.07,134.02,26.03]
[1744929810714,34.86149154,134.07,134.02,34.7857259]
[1744929812833,34.86149154,134.07,134.02,26.03]
[1744929813035,34.86149154,134.07,134.02,34.7857259]
[1744929815041,34.86149154,134.07,134.02,8.7857259]
[1744929816140,34.86149154,134.07,134.02,0.45648471]
[1744929816337,8.7557259,134.04,134.02,0.03]
[1744929816543,8.7557259,134.03,134.02,0.03]
[1744929816754,8.7557259,134.03,134.0,0.03]
[1744929817619,7.46157289,134.02,134.0,0.03]
[1744929819243,16.21729879,134.02,134.0,0.03]
[1744929819430,7.46157289,134.02,134.0,0.03]
[1744929819618,7.46157289,134.02,134.0,8.7857259]
[1744929819819,26.11414743,134.03,134.0,0.03]
[1744929823746,26.11414743,134.03,134.0,8.7857259]
[1744929828444,7.46101619,134.03,134.02,8.7557259]
[1744929828638,7.46101619,134.03,134.02,9.18221061]
[1744929829046,7.46072344,134.04,134.02,9.18221061]
[1744929829254,7.46072344,134.04,134.03,8.7557259]
[1744929830052,7.45934656,134.06,134.03,8.7557259]
[1744929831434,26.10771296,134.06,134.02,8.89788747]
[1744929832552,34.86343886,134.06,134.02,8.89788747]
[1744929836565,7.45934656,134.06,134.03,8.89788747]
[1744929843458,7.45934656,134.06,134.03,34.89788747]
[1744929844040,7.45934656,134.06,134.03,8.89788747]
[1744929844573,7.45934656,134.06,134.03,34.89788747]
[1744929847670,7.45934656,134.06,134.03,8.89788747]
[1744929849972,7.45934656,134.06,134.03,34.89788747]
[1744929851064,26.10771296,134.06,134.03,34.7557259]
[1744929851364,26.10771296,134.06,134.02,23.4957259]
[1744929854555,26.10771296,134.06,134.03,8.7557259]
[1744929854758,7.45934656,134.06,134.04,8.7557259]
[1744929855759,7.45934656,134.06,134.03,9.18221061]
[1744929856057,7.45934656,134.06,134.05,26.0]
[1744929856870,26.10428238,134.08,134.05,26.0]
[1744929857168,0.063,134.12,134.11,46.0]
[1744929857380,7.51826507,134.14,134.11,69.92221061]
[1744929857571,0.063,134.14,134.13,9.18221061]
[1744929858173,0.063,134.14,134.13,29.18221061]
[1744929862790,0.063,134.14,134.13,9.18221061]
[1744929870892,0.063,134.14,134.13,9.18221061]
[1744929882195,0.063,134.14,134.13,23.92221061]
[1744929901312,0.063,134.14,134.13,14.74]
[1744929901709,7.956,134.14,134.11,8.7557259]
[1744929901893,7.956,134.14,134.12,8.7557259]
[1744929902099,7.956,134.14,134.13,8.7557259]
[1744929902295,7.956,134.14,134.12,26.28432314]
[1744929902494,7.956,134.14,134.13,8.7557259]
[1744929902708,0.063,134.14,134.13,8.7557259]
[1744929903122,0.063,134.14,134.13,9.18221061]
[1744929905519,0.063,134.15,134.13,9.18221061]
[1744929905822,0.063,134.15,134.14,35.18221061]
[1744929906923,0.063,134.15,134.14,49.92221061]
[1744929907522,0.063,134.15,134.14,35.18221061]
[1744929908735,0.063,134.15,134.14,38.16416975]
[1744929909046,0.063,134.15,134.14,35.18221061]
[1744929910810,0.063,134.15,134.14,26.0]
[1744929911003,0.063,134.15,134.14,34.7557259]
[1744929913428,7.51734215,134.15,134.14,34.7557259]
[1744929913620,7.51734215,134.15,134.14,26.0]
[1744929913621,9.05094215,134.15,134.14,26.0]
[1744929913803,9.05094215,134.15,134.14,34.7557259]
[1744929925338,9.05094215,134.15,134.14,26.0]
[1744929925947,9.05094215,134.15,134.13,14.74]
[1744929929738,9.05094215,134.15,134.12,34.7557259]
[1744929930743,6.4898,134.12,134.07,8.7557259]
[1744929930919,8.7557259,134.1,134.06,23.5257259]
[1744929931120,8.7557259,134.1,134.07,26.0]
[1744929931338,8.7557259,134.09,134.06,14.77]
[1744929931643,34.85759776,134.09,134.06,14.77]
[1744929931856,8.7557259,134.08,134.06,14.77]
[1744929932157,26.10187186,134.09,134.06,14.77]
[1744929932321,7.45767767,134.09,134.07,8.7557259]
[1744929932937,7.45767767,134.09,134.06,23.5257259]
[1744929934246,16.21340357,134.09,134.06,14.77]
[1744929934548,34.85759776,134.09,134.06,14.77]
[1744929935848,7.45767767,134.09,134.07,8.7557259]
[1744929936425,7.45767767,134.09,134.06,23.5257259]
[1744929941255,7.45767767,134.09,134.06,14.77]
[1744929941852,26.10187186,134.09,134.06,23.5257259]
[1744929946258,26.10187186,134.09,134.06,14.77]
[1744929946453,26.10187186,134.09,134.06,23.5257259]
[1744929947836,26.10187186,134.09,134.06,14.77]
[1744929948036,8.7557259,134.08,134.06,0.03]
[1744929948255,7.45879018,134.07,134.06,0.03]
[1744929948843,26.10576564,134.07,134.03,34.7557259]
[1744929949554,26.10576564,134.07,134.03,26.0]
[1744929949765,26.10576564,134.07,134.03,34.7557259]
[1744929950463,8.7557259,134.07,134.03,34.7557259]
[1744929950663,8.7557259,134.07,134.03,26.0]
[1744929950845,8.7557259,134.07,134.03,34.7557259]
[1744929951265,8.7557259,134.07,134.03,8.7557259]
[1744929951468,8.7557259,134.08,134.03,34.7557259]
[1744929952360,8.7557259,134.06,134.02,14.74]
[1744929952578,8.7557259,134.06,134.02,23.4957259]
[1744929952874,8.7557259,134.06,134.02,14.74]
[1744929953167,15.4013259,134.07,134.02,23.4957259]
[1744929953664,6.6456,134.07,134.03,8.7557259]
[1744929953866,6.6456,134.07,134.04,8.7557259]
[1744929954239,7.45934656,134.06,134.04,8.7557259]
[1744929964178,7.45934656,134.06,134.05,8.7557259]
[1744929966273,7.45934656,134.06,134.04,8.7557259]
[1744929966471,18.64732286,134.07,134.04,8.7557259]
[1744929967350,8.7557259,134.06,134.02,14.74]
[1744929967570,8.7557259,134.06,134.02,23.4957259]
[1744929968470,27.40304876,134.07,134.02,23.4957259]
[1744929968674,8.7557259,134.06,134.02,23.4957259]
[1744929969370,8.7557259,134.07,134.03,8.7557259]
[1744929970977,7.45934656,134.06,134.02,14.74]
[1744929971352,7.45934656,134.06,134.03,8.7557259]
[1744929972278,26.10771296,134.06,134.03,8.7557259]
[1744929976480,34.86343886,134.06,134.02,23.4957259]
[1744929977877,34.86343886,134.06,134.02,14.74]
[1744929978078,16.7167259,134.05,134.01,26.0]
[1744929978595,16.7167259,134.05,134.01,34.7557259]
[1744929978758,7.961,134.05,134.01,34.7557259]
[1744929979679,16.7167259,134.05,134.01,34.7557259]
[1744929980676,7.46045956,134.04,134.01,34.7557259]
[1744929980893,7.46045956,134.04,134.02,8.7557259]
[1744929981262,26.11160847,134.04,134.01,8.7557259]
[1744929982384,18.65114891,134.04,134.01,8.7557259]
[1744929986682,18.65114891,134.04,134.02,8.7557259]
[1744929986868,18.65114891,134.04,134.01,0.42648471]
[1744929987065,18.65114891,134.04,134.01,9.18221061]
[1744929990281,18.65114891,134.04,134.0,0.03]
[1744929990486,27.40687481,134.04,134.0,0.03]
[1744929990687,27.40687481,134.04,134.0,8.7857259]
[1744929993389,8.7557259,134.05,134.0,8.7857259]
[1744929995470,8.7557259,134.05,134.01,8.7557259]
[1744929998172,26.11160847,134.04,134.0,8.7857259]
[1744929999394,26.11160847,134.04,134.0,0.03]
[1744929999573,26.11160847,134.04,134.0,8.7857259]
[1744930001589,34.86733437,134.04,134.0,8.7857259]
[1744930002701,34.86733437,134.04,134.0,0.03]
[1744930004385,26.11160847,134.04,134.01,8.7557259]
[1744930004587,26.11160847,134.04,134.0,8.7857259]
[1744930005507,8.7557259,134.02,133.99,1e-08]
[1744930005818,8.7557259,134.0,133.98,1e-08]
[1744930006795,35.43677476,133.99,133.95,0.03]
[1744930007000,8.7557259,133.97,133.95,0.03]
[1744930007306,26.68104886,133.99,133.95,0.03]
[1744930007307,8.7557259,133.98,133.95,0.03]
[1744930007501,26.12330197,133.98,133.95,0.03]
[1744930011104,8.7557259,133.97,133.95,0.03]
[1744930011613,7.46491489,133.96,133.95,0.03]
[1744930018704,16.22064079,133.96,133.94,0.03]
[1744930018898,34.88292803,133.96,133.93,0.03]
[1744930019093,8.7557259,133.95,133.93,0.03]
[1744930019291,10.2884259,133.95,133.93,0.03]
[1744930019807,10.2884259,133.95,133.93,1e-08]
[1744930021028,7.46602956,133.94,133.93,1e-08]
[1744930021918,16.22175546,133.94,133.93,1e-08]
[1744930023608,22.85315546,133.94,133.93,1e-08]
[1744930024519,22.85315546,133.94,133.92,1e-08]
[1744930025306,8.7557259,133.93,133.91,1e-08]
[1744930025487,8.7557259,133.92,133.91,1e-08]
[1744930025688,8.7557259,133.92,133.89,0.03]
[1744930025689,34.89073186,133.92,133.89,0.03]
[1744930025905,8.7557259,133.91,133.89,0.03]
[1744930026125,34.89073186,133.92,133.89,0.03]
[1744930027732,26.13500596,133.92,133.89,8.7857259]
[1744930028331,26.13500596,133.92,133.9,8.7557259]
[1744930028705,26.13500596,133.92,133.89,8.7857259]
[1744930029311,26.13500596,133.92,133.9,8.7557259]
[1744930029923,18.6678614,133.92,133.9,8.7557259]
[1744930030219,18.6678614,133.92,133.89,0.03]
[1744930030425,18.6678614,133.92,133.89,34.7857259]
[1744930031021,27.4235873,133.92,133.89,0.03]
[1744930031203,8.7557259,133.91,133.89,0.03]
[1744930031396,27.4235873,133.92,133.89,0.03]
[1744930031804,34.89073186,133.92,133.89,0.03]
[1744930032210,8.7557259,133.9,133.87,0.03]
[1744930032425,63.47072877,133.92,133.87,0.03]
[1744930032626,8.7557259,133.9,133.87,0.03]
[1744930033219,8.7557259,133.89,133.87,0.03]
[1744930033627,8.7557259,133.89,133.83,23.5257259]
[1744930033628,16.22510146,133.88,133.83,23.5257259]
[1744930033806,16.22510146,133.88,133.83,14.77]
[1744930033807,8.7557259,133.87,133.83,14.77]
[1744930034145,8.7557259,133.87,133.83,0.03]
[1744930034330,8.7557259,133.86,133.83,0.03]
[1744930035630,7.47104968,133.85,133.83,0.03]
[1744930037515,7.47104968,133.85,133.84,34.7557259]
[1744930037714,7.46937556,133.88,133.84,35.18221061]
[1744930038026,7.46937556,133.88,133.87,8.7557259]
[1744930038522,7.46937556,133.88,133.86,8.7557259]
[1744930040529,26.14086189,133.89,133.86,8.7557259]
[1744930041641,26.14086189,133.89,133.87,8.7557259]
[1744930042814,26.14086189,133.89,133.86,8.7557259]
[1744930044630,7.46881768,133.89,133.87,8.7557259]
[1744930044828,7.46851094,133.9,133.88,8.7557259]
[1744930045045,7.46851094,133.9,133.89,8.7557259]
[1744930045534,7.46714456,133.92,133.89,8.7557259]
[1744930045732,7.46714456,133.92,133.91,8.7557259]
[1744930046334,18.66679997,133.93,133.9,8.7557259]
[1744930048434,26.13338699,133.93,133.9,8.7557259]
[1744930049234,7.46658702,133.93,133.92,8.7557259]
[1744930050840,26.19247278,133.95,133.92,8.7557259]
[1744930051735,26.19247278,133.95,133.93,8.7557259]
[1744930052134,26.19247278,133.95,133.92,8.7557259]
[1744930058643,26.19247278,133.95,133.89,40.88216157]
[1744930058944,8.7557259,133.94,133.9,8.7557259]
[1744930060250,26.13305457,133.93,133.9,8.7557259]
[1744930064930,26.13305457,133.93,133.9,8.2557259]
[1744930073261,26.13305457,133.93,133.89,26.0]
[1744930073561,8.7557259,133.92,133.87,8.7557259]
[1744930074648,26.13305457,133.93,133.89,8.7557259]
[1744930074848,26.13305457,133.93,133.9,8.7557259]
[1744930075060,26.13305457,133.93,133.87,0.42648471]
[1744930075260,26.13305457,133.93,133.89,8.7557259]
[1744930075766,26.13305457,133.93,133.9,8.7557259]
[1744930080381,26.13305457,133.93,133.89,34.7557259]
[1744930082473,34.88878047,133.93,133.88,8.7557259]
[1744930083773,26.13305457,133.93,133.9,8.7557259]
[1744930084154,26.13305457,133.93,133.89,34.7557259]
[1744930084563,34.88878047,133.93,133.89,26.0]
[1744930085981,34.88878047,133.93,133.89,34.7557259]
[1744930087872,34.88878047,133.93,133.89,34.2557259]
[1744930088277,34.88878047,133.93,133.89,25.5]
[1744930088473,34.88878047,133.93,133.89,34.2557259]
[1744930088679,26.13305457,133.93,133.89,34.2557259]
[1744930089482,26.13305457,133.93,133.9,8.7557259]
[1744930090967,26.13305457,133.93,133.89,25.5]
[1744930091186,26.13305457,133.93,133.9,8.7557259]
[1744930091486,26.13305457,133.93,133.89,34.2557259]
[1744930092883,34.88878047,133.93,133.88,8.7557259]
[1744930094671,26.13305457,133.93,133.89,8.7557259]
[1744930095887,26.13305457,133.93,133.9,8.7557259]
[1744930096471,26.13305457,133.93,133.89,8.7557259]
[1744930097187,34.88878047,133.93,133.88,8.7557259]
[1744930097877,72.22171558,133.93,133.88,8.7557259]
[1744930098077,72.22171558,133.93,133.87,8.7557259]
[1744930098471,8.7557259,133.92,133.87,8.7557259]
[1744930099282,26.13695765,133.91,133.87,8.7557259]
[1744930103696,26.13695765,133.91,133.88,8.7557259]
[1744930107803,18.66925547,133.91,133.88,8.7557259]
[1744930117207,63.46598968,133.93,133.88,8.7557259]
[1744930117507,72.22171558,133.93,133.89,8.7557259]
[1744930120890,63.46598968,133.93,133.89,8.7557259]
[1744930124422,72.22171558,133.93,133.87,0.42648471]
[1744930124711,8.7557259,133.92,133.88,8.7557259]
[1744930124911,8.7557259,133.92,133.87,9.18221061]
[1744930126113,26.13695765,133.91,133.87,8.7557259]
[1744930130096,78.54289449,133.91,133.86,8.7557259]
[1744930130627,78.54289449,133.91,133.87,8.7557259]
[1744930131396,69.78716859,133.91,133.87,8.7557259]
[1744930134721,78.54289449,133.91,133.87,8.7557259]
[1744930136125,69.78716859,133.91,133.87,8.7557259]
[1744930138833,32.44865765,133.91,133.88,8.7557259]
[1744930139004,26.13695765,133.91,133.89,8.7557259]
[1744930139223,26.13695765,133.91,133.88,8.7557259]
[1744930140226,18.66925547,133.91,133.88,8.7557259]
[1744930149465,18.66925547,133.91,133.87,8.7557259]
[1744930150502,34.89268355,133.91,133.87,8.7557259]
[1744930150671,8.7557259,133.9,133.86,8.7557259]
[1744930152353,10.3725259,133.9,133.86,8.7557259]
[1744930152554,8.7557259,133.88,133.83,8.7857259]
[1744930152758,8.7557259,133.87,133.83,0.03]
[1744930153057,8.7557259,133.87,133.83,8.7857259]
[1744930153934,8.7557259,133.87,133.83,0.03]
[1744930154674,26.14672044,133.86,133.83,0.03]
[1744930154872,34.90244634,133.86,133.83,0.03]
[1744930156471,26.14672044,133.86,133.83,8.7857259]
[1744930156966,26.14672044,133.86,133.84,8.7557259]
[1744930157665,26.14672044,133.86,133.83,8.7857259]
[1744930159776,26.14672044,133.86,133.83,0.03]
[1744930160375,26.14672044,133.86,133.83,8.7857259]
[1744930160972,26.14672044,133.86,133.83,0.03]
[1744930162268,34.90244634,133.86,133.83,0.03]
[1744930162669,26.14672044,133.86,133.83,0.03]
[1744930164170,26.14672044,133.86,133.83,8.7857259]
[1744930165664,26.14672044,133.86,133.84,8.7557259]
[1744930165973,7.47049155,133.86,133.85,8.7557259]
[1744930166176,26.14320696,133.88,133.85,8.7557259]
[1744930166380,26.14320696,133.88,133.86,8.7557259]
[1744930167078,26.14320696,133.88,133.85,8.7557259]
[1744930172382,26.14320696,133.88,133.86,8.7557259]
[1744930173069,26.14320696,133.88,133.85,8.7557259]
[1744930173985,34.89893286,133.88,133.83,8.7857259]
[1744930174200,26.14320696,133.88,133.84,8.7557259]
[1744930174484,26.14320696,133.88,133.85,8.7557259]
[1744930176479,26.14320696,133.88,133.84,8.7557259]
[1744930180098,27.4295573,133.88,133.84,8.7557259]
[1744930181091,8.7557259,133.87,133.83,0.03]
[1744930181295,8.7557259,133.86,133.83,0.03]
[1744930181685,8.7557259,133.87,133.83,8.7857259]
[1744930182083,26.14672044,133.86,133.83,8.7857259]
[1744930182474,26.14672044,133.86,133.83,0.03]
[1744930182682,34.90244634,133.86,133.83,0.03]
[1744930182906,26.14672044,133.86,133.83,0.03]
[1744930183397,26.14672044,133.86,133.83,8.7857259]
[1744930184194,34.90244634,133.86,133.83,0.03]
[1744930184923,8.7557259,133.83,133.82,1e-08]
[1744930185207,15.2186259,133.83,133.81,1e-08]
[1744930185378,26.0,133.84,133.81,1e-08]
[1744930185576,1.5443,133.85,133.81,8.75572591]
[1744930185797,10.3000259,133.85,133.81,8.75572591]
[1744930185974,10.3000259,133.85,133.81,1e-08]
[1744930186297,26.15062761,133.84,133.81,1e-08]
[1744930186498,26.15062761,133.84,133.81,8.75572591]
[1744930187195,26.15062761,133.84,133.81,1e-08]
[1744930187603,26.15062761,133.84,133.81,8.75572591]
[1744930191578,26.15062761,133.84,133.81,1e-08]
[1744930196209,26.15062761,133.84,133.81,8.75572591]
[1744930203210,8.7557259,133.83,133.81,1e-08]
[1744930203592,8.7557259,133.82,133.81,1e-08]
[1744930203908,7.47272455,133.82,133.81,1e-08]
[1744930204104,16.22845045,133.82,133.81,1e-08]
[1744930204306,78.9135846,133.82,133.77,0.03]
[1744930204507,8.7557259,133.8,133.77,0.03]
[1744930205012,8.7557259,133.79,133.77,0.03]
[1744930205515,8.7557259,133.8,133.77,0.03]
[1744930205920,7.47440017,133.79,133.77,0.03]
[1744930206306,8.7557259,133.78,133.75,0.03]
[1744930207617,60.91612651,133.79,133.75,0.03]
[1744930207923,7.47384155,133.8,133.78,8.7557259]
[1744930208100,7.47384155,133.8,133.79,8.7557259]
[1744930209837,18.6804728,133.83,133.79,9.18221061]
[1744930210134,16.22733379,133.84,133.78,26.0]
[1744930210426,16.22733379,133.84,133.79,8.7557259]
[1744930210724,34.90635351,133.84,133.79,8.7557259]
[1744930211123,34.90635351,133.84,133.8,8.7557259]
[1744930213028,34.90635351,133.84,133.79,8.7557259]
[1744930213215,36.56845351,133.84,133.79,8.7557259]
[1744930215223,73.92649296,133.84,133.79,8.7557259]
[1744930215730,8.7557259,133.83,133.79,8.7557259]
[1744930216627,73.92649296,133.84,133.79,8.7557259]
[1744930217303,73.92649296,133.84,133.8,8.7557259]
[1744930218819,26.15062761,133.84,133.82,8.7557259]
[1744930219630,18.67901972,133.84,133.82,8.7557259]
[1744930219841,18.67901972,133.84,133.83,8.7557259]
[1744930220542,63.50112476,133.86,133.83,8.7557259]
[1744930223134,63.50112476,133.86,133.84,8.7557259]
[1744930225030,56.03063321,133.86,133.84,8.7557259]
[1744930225738,56.03063321,133.86,133.81,26.0]
[1744930225940,56.03063321,133.86,133.83,8.7557259]
[1744930226142,18.67622889,133.86,133.84,8.7557259]
[1744930226341,18.67622889,133.86,133.83,8.7557259]
[1744930227843,26.14672044,133.86,133.82,8.7557259]
[1744930228227,8.7557259,133.85,133.8,14.74]
[1744930228427,26.14672044,133.86,133.8,23.4957259]
[1744930228428,8.7557259,133.84,133.8,23.4957259]
[1744930229338,26.15258163,133.83,133.79,26.0]
[1744930229547,27.75788163,133.83,133.79,34.7557259]
[1744930229841,27.75788163,133.83,133.8,8.7557259]
[1744930231724,7.47216618,133.83,133.82,8.7557259]
[1744930233130,26.14879482,133.85,133.82,8.7557259]
[1744930233333,26.14879482,133.85,133.83,8.7557259]
[1744930236133,7.47104968,133.85,133.84,8.7557259]
[1744930236638,7.47104968,133.85,133.82,26.0]
[1744930236639,7.47104968,133.85,133.83,8.7557259]
[1744930238350,26.14672044,133.86,133.83,8.7557259]
[1744930240241,8.7557259,133.84,133.8,34.7557259]
[1744930240448,8.7557259,133.84,133.8,26.0]
[1744930240650,8.7557259,133.85,133.81,8.7557259]
[1744930240846,8.7557259,133.85,133.8,34.7557259]
[1744930241456,26.15062761,133.84,133.8,34.7557259]
[1744930241940,34.90635351,133.84,133.8,8.7557259]
[1744930243035,34.90635351,133.84,133.79,8.7557259]
[1744930245763,8.7557259,133.83,133.79,8.7557259]
[1744930246265,26.15453593,133.82,133.79,8.7557259]
[1744930247160,26.15453593,133.82,133.78,26.0]
[1744930247349,34.91026183,133.82,133.78,34.7557259]
[1744930247662,26.15453593,133.82,133.78,34.7557259]
[1744930248352,26.15453593,133.82,133.78,8.7557259]
[1744930250160,26.15453593,133.82,133.76,26.28432314]
[1744930250365,26.15453593,133.82,133.78,8.7557259]
[1744930251659,34.91026183,133.82,133.78,8.7557259]
[1744930251878,63.5181587,133.82,133.76,34.7557259]
[1744930252179,8.7557259,133.81,133.76,26.0]
[1744930252343,8.7557259,133.81,133.77,8.7557259]
[1744930252538,72.2738846,133.82,133.77,8.7557259]
[1744930252743,72.2738846,133.82,133.78,8.7557259]
[1744930252944,26.15453593,133.82,133.79,8.7557259]
[1744930253871,5.53267035,133.81,133.76,26.14216157]
[1744930254079,5.53267035,133.81,133.79,8.7557259]
[1744930254879,26.15453593,133.82,133.79,8.7557259]
[1744930256574,26.15453593,133.82,133.8,8.7557259]
[1744930257385,18.68181138,133.82,133.8,8.7557259]
[1744930260374,18.68181138,133.82,133.79,8.7557259]
[1744930263382,18.68181138,133.82,133.8,8.7557259]
[1744930265968,26.15062761,133.84,133.8,8.7557259]
[1744930266170,34.90635351,133.84,133.79,8.7557259]
[1744930266689,5.53650572,133.83,133.79,8.7557259]
[1744930267071,5.53650572,133.83,133.82,35.18221061]
[1744930268075,7.46993351,133.87,133.84,26.0]
[1744930268275,7.46993351,133.87,133.84,34.7557259]
[1744930268789,26.1447673,133.87,133.84,34.7557259]
[1744930269098,5.53793801,133.86,133.82,8.7557259]
[1744930269301,5.53793801,133.86,133.83,8.7557259]
[1744930269801,34.9004932,133.87,133.83,8.7557259]
[1744930272295,5.53592546,133.86,133.83,8.7557259]
[1744930273703,34.9004932,133.87,133.83,8.7557259]
[1744930275888,5.53655075,133.86,133.83,8.7557259]
[1744930276686,34.9004932,133.87,133.83,8.7557259]
[1744930279200,7.47104968,133.85,133.83,8.7557259]
[1744930280194,7.47104968,133.85,133.84,8.7557259]
[1744930281290,26.1447673,133.87,133.84,8.7557259]
[1744930281875,26.1447673,133.87,133.82,26.14216157]
[1744930282076,26.1447673,133.87,133.84,8.7557259]
[1744930283978,26.1447673,133.87,133.85,8.7557259]
[1744930284875,26.1447673,133.87,133.83,0.28432314]
[1744930285079,26.1447673,133.87,133.84,8.7557259]
[1744930288201,26.1447673,133.87,133.85,8.7557259]
[1744930288700,34.9004932,133.87,133.83,34.7557259]
[1744930288877,26.1447673,133.87,133.83,34.7557259]
[1744930290111,26.1447673,133.87,133.8,15.08216157]
[1744930290112,8.7557259,133.86,133.8,15.08216157]
[1744930290296,26.15062761,133.84,133.8,14.94]
[1744930290684,26.15062761,133.84,133.81,8.7557259]
[1744930291808,26.15062761,133.84,133.82,8.7557259]
[1744930292808,18.67901972,133.84,133.82,8.7557259]
[1744930293014,7.47104968,133.85,133.83,8.7557259]
[1744930293686,26.14867388,133.85,133.82,8.7557259]
[1744930300395,26.14867388,133.85,133.81,8.7557259]
[1744930300594,34.90439978,133.85,133.81,8.7557259]
[1744930300800,14.29957744,133.84,133.8,23.6957259]
[1744930301200,5.54385154,133.84,133.8,8.7557259]
[1744930301409,14.29957744,133.84,133.8,8.7557259]
[1744930301704,15.91777744,133.84,133.8,8.7557259]
[1744930301908,8.7557259,133.83,133.78,26.0]
[1744930302100,5.54385154,133.82,133.78,34.7557259]
[1744930302503,26.15649054,133.81,133.78,34.7557259]
[1744930303011,26.15649054,133.81,133.76,15.20432314]
[1744930303204,26.15649054,133.81,133.78,8.7557259]
[1744930304111,26.15649054,133.81,133.77,8.7557259]
[1744930306399,26.15649054,133.81,133.78,8.7557259]
[1744930308621,8.7557259,133.8,133.76,23.6757259]
[1744930309203,34.91221644,133.81,133.77,8.7557259]
[1744930310519,26.16040061,133.79,133.76,49.6757259]
[1744930311121,26.16040061,133.79,133.77,8.7557259]
[1744930312405,26.15649054,133.81,133.78,8.7557259]
[1744930314306,26.15649054,133.81,133.76,40.92]
[1744930314516,26.15649054,133.81,133.78,8.7557259]
[1744930314923,34.91221644,133.81,133.77,8.7557259]
[1744930316305,26.15649054,133.81,133.78,8.7557259]
[1744930318738,26.15649054,133.81,133.77,8.7557259]
[1744930321739,26.15649054,133.81,133.78,8.7557259]
[1744930322838,7.47328301,133.81,133.8,8.7557259]
[1744930324034,7.47216618,133.83,133.8,8.7557259]
[1744930324242,7.47216618,133.83,133.82,8.7557259]
[1744930326114,26.14878955,133.85,133.82,8.7557259]
[1744930327135,26.14878955,133.85,133.83,8.7557259]
[1744930329144,26.14878955,133.85,133.82,8.7557259]
[1744930329319,8.7557259,133.84,133.81,26.0]
[1744930329524,8.7557259,133.83,133.79,34.7557259]
[1744930329835,8.7557259,133.84,133.79,34.7557259]
[1744930330028,8.7557259,133.83,133.79,34.7557259]
[1744930330222,8.7557259,133.83,133.79,8.7557259]
[1744930330424,26.15453593,133.82,133.79,34.7557259]
[1744930332140,18.68181138,133.82,133.79,34.7557259]
[1744930335324,18.68181138,133.82,133.79,29.7557259]